[Event "4th Batumi Cup 2018"]
[Site "Batumi"]
[Date "2018.07.03"]
[Round "1"]
[White "Smirnov, Pavel"]
[Black "Chkhaidze, Nikoloz"]
[Result "1/2-1/2"]
[ECO "D79"]
[WhiteElo "2576"]
[BlackElo "2337"]
[Annotator "ChessBase"]
[PlyCount "181"]
[EventDate "2018.07.03"]
[EventType "swiss"]
[EventCountry "GEO"]
[SourceTitle "playchess.com"]
[Source "ChessBase"]
[SourceQuality "1"]
[TimeControl "40/5400+30:1800+30"]

1. d4 {[%emt 0:00:00]} Nf6 {[%emt 0:00:00]} 2. c4 {[%emt 0:00:00]} g6 {[%emt 0:00:00]} 3. g3 {[%emt 0:00:00]} c6 {[%emt 0:00:00]} 4. Bg2 {[%emt 0:00:00]} d5 {[%emt 0:00:02]} 5. Nf3 {[%emt 0:00:09]} Bg7 {[%emt 0:00:05]} 6. Ne5 {[%emt 0:01:35]} O-O {[%emt 0:00:44]} 7. O-O {[%emt 0:00:06]} Nfd7 {[%emt 0:05:37]} 8. cxd5 {[%emt 0:01:36]} Nxe5 {[%emt 0:04:44]} 9. dxe5 {[%emt 0:02:09]} Bxe5 {[%emt 0:00:05]} 10. Nc3 {[%emt 0:00:22]} cxd5 {[%emt 0:01:28]} 11. Nxd5 {[%emt 0:01:12]} Nc6 {[%emt 0:01:52]} 12. Bh6 {[%emt 0:00:05]} Bg7 {[%emt 0:09:23]} 13. Bxg7 {[%emt 0:00:29]} Kxg7 {[%emt 0:00:05]} 14. Qb3 {[%emt 0:00:55]} Qa5 {[%emt 0:04:04]} 15. Rfd1 {[%emt 0:00:50]} Rb8 {[%emt 0:04:31]} 16. Qe3 {[%emt 0:02:14]} Be6 {[%emt 0:19:38]} 17. b4 {[%emt 0:03:36]} Qa4 {[%emt 0:00:20]} 18. Nc7 {[%emt 0:04:49]} Qxb4 {[%emt 0:03:26]} 19. Bxc6 {[%emt 0:07:50]} bxc6 {[%emt 0:00:06]} 20. Na6 {[%emt 0:07:29]} Qb6 {[%emt 0:05:19]} 21. Qc3+ {[%emt 0:00:11]} Kg8 {[%emt 0:02:57]} 22. Nxb8 {[%emt 0:00:07]} Rxb8 {[%emt 0:00:04]} 23. Rd2 {[%emt 0:03:06]} c5 {[%emt 0:02:25]} 24. Rad1 {[%emt 0:01:51]} c4 {[%emt 0:01:20]} 25. h4 {[%emt 0:00:13]} h5 {[%emt 0:01:15]} 26. Qa3 {[%emt 0:02:25]} Qc7 {[%emt 0:01:28]} 27. Rb2 {[%emt 0:01:10]} Rc8 {[%emt 0:08:05]} 28. Qc3 {[%emt 0:00:14]} Qc6 {[%emt 0:00:28]} 29. Kh2 {[%emt 0:02:20]} Qc5 {[%emt 0:01:40]} 30. e4 {[%emt 0:00:21]} f6 {[%emt 0:02:16]} 31. Qd4 {[%emt 0:01:08]} Qxd4 {[%emt 0:10:20]} 32. Rxd4 {[%emt 0:02:18]} c3 {[%emt 0:00:02]} 33. Rc2 {[%emt 0:01:45]} Bxa2 {[%emt 0:00:15]} 34. Rd3 {[%emt 0:01:37]} Bb1 {[%emt 0:00:21]} 35. Rcxc3 {[%emt 0:01:42]} Rxc3 {[%emt 0:00:11]} 36. Rxc3 {[%emt 0:00:04]} Bxe4 {[%emt 0:00:05]} 37. Re3 {[%emt 0:00:33]} Bc2 {[%emt 0:08:42]} 38. Rxe7 {[%emt 0:00:46]} a5 {[%emt 0:00:05]} 39. f3 {[%emt 0:00:35]} a4 {[%emt 0:00:09]} 40. g4 {[%emt 0:00:00]} Kf8 {[%emt 0:00:00]} 41. Ra7 {[%emt 0:02:49]} hxg4 {[%emt 0:16:29]} 42. fxg4 {[%emt 0:00:06]} g5 {[%emt 0:00:12]} 43. h5 {[%emt 0:03:15]} Kg8 {[%emt 0:05:09]} 44. Kg3 {[%emt 0:00:12]} Bd1 {[%emt 0:02:45]} 45. h6 {[%emt 0:06:22]} Bc2 {[%emt 0:03:03]} 46. Rg7+ {[%emt 0:00:48]} Kh8 {[%emt 0:01:55]} 47. Rf7 {[%emt 0:03:16]} a3 {[%emt 0:00:14]} 48. Rxf6 {[%emt 0:01:34]} a2 {[%emt 0:00:16]} 49. Ra6 {[%emt 0:00:10]} Bb3 {[%emt 0:00:31]} 50. Ra7 {[%emt 0:00:39]} Bd5 {[%emt 0:01:00]} 51. Kf2 {[%emt 0:00:17]} Be6 {[%emt 0:00:33]} 52. Kf3 {[%emt 0:00:27]} Bd5+ {[%emt 0:00:04]} 53. Ke3 {[%emt 0:00:05]} Be6 {[%emt 0:03:09]} 54. Ke4 {[%emt 0:01:08]} Bxg4 {[%emt 0:00:26]} 55. Rxa2 {[%emt 0:01:03]} Kh7 {[%emt 0:00:42]} 56. Rh2 {[%emt 0:00:08]} Bd1 {[%emt 0:01:16]} 57. Kf5 {[%emt 0:00:14]} g4 {[%emt 0:00:15]} 58. Kg5 {[%emt 0:01:05]} g3 {[%emt 0:00:10]} 59. Rg2 {[%emt 0:01:20]} Bf3 {[%emt 0:01:01]} 60. Rxg3 {[%emt 0:00:33]} Be4 {[%emt 0:00:12]} 61. Re3 {[%emt 0:01:20]} Bc2 {[%emt 0:00:19]} 62. Re7+ {[%emt 0:05:13]} Kh8 {[%emt 0:00:06]} 63. Kf6 {[%emt 0:01:25]} Bd3 {[%emt 0:00:28]} 64. Ra7 {[%emt 0:02:19]} Bc2 {[%emt 0:00:28]} 65. Ra8+ {[%emt 0:01:12]} Kh7 {[%emt 0:00:05]} 66. Re8 {[%emt 0:00:11]} Bd3 {[%emt 0:01:08]} 67. Re6 {[%emt 0:01:26]} Bc2 {[%emt 0:00:26]} 68. Re3 {[%emt 0:00:41]} Bb1 {[%emt 0:00:48]} 69. Rc3 {[%emt 0:00:19]} Be4 {[%emt 0:00:27]} 70. Ke5 {[%emt 0:01:31]} Bb1 {[%emt 0:00:35]} 71. Rc6 {[%emt 0:01:21]} Bd3 {[%emt 0:00:20]} 72. Kf6 {[%emt 0:00:59]} Be4 {[%emt 0:00:21]} 73. Rc7+ {[%emt 0:00:10]} Kh8 {[%emt 0:00:11]} 74. Rd7 {[%emt 0:00:51]} Bc2 {[%emt 0:00:12]} 75. Rg7 {[%emt 0:00:31]} Bd3 {[%emt 0:00:27]} 76. Kf7 {[%emt 0:00:05]} Bc4+ {[%emt 0:00:21]} 77. Kf8 {[%emt 0:00:08]} Bd3 {[%emt 0:00:49]} 78. h7 {[%emt 0:03:59]} Bxh7 {[%emt 0:00:51]} 79. Kf7 {[%emt 0:00:28]} Bd3 {[%emt 0:02:13]} 80. Rg8+ {[%emt 0:00:23]} Kh7 {[%emt 0:00:03]} 81. Rg3 {[%emt 0:00:29]} Bc4+ {[%emt 0:00:17]} 82. Kf6 {[%emt 0:00:11]} Kh8 {[%emt 0:01:27]} 83. Rh3+ {[%emt 0:01:02]} Kg8 {[%emt 0:00:05]} 84. Rc3 {[%emt 0:00:06]} Bd5 {[%emt 0:00:37]} 85. Rc5 {[%emt 0:01:11]} Bb3 {[%emt 0:01:00]} 86. Rc8+ {[%emt 0:00:52]} Kh7 {[%emt 0:00:07]} 87. Rc3 {[%emt 0:00:17]} Bd5 {[%emt 0:00:15]} 88. Rd3 {[%emt 0:00:20]} Bc4 {[%emt 0:00:21]} 89. Rd4 {[%emt 0:00:18]} Bb3 {[%emt 0:00:18]} 90. Kg5 {[%emt 0:00:57]} Kg7 {[%emt 0:00:32]} 91. Rd7+ {[%emt 0:00:10]} 1/2-1/2

[Event "4th Batumi Cup 2018"]
[Site "Batumi"]
[Date "2018.07.03"]
[Round "1"]
[White "Levin, Evgeny A"]
[Black "Gvetadze, Sofio"]
[Result "1-0"]
[ECO "E53"]
[WhiteElo "2539"]
[BlackElo "2316"]
[Annotator "ChessBase"]
[PlyCount "71"]
[EventDate "2018.07.03"]
[EventType "swiss"]
[EventCountry "GEO"]
[SourceTitle "playchess.com"]
[Source "ChessBase"]
[SourceQuality "1"]
[TimeControl "40/5400+30:1800+30"]

1. d4 {[%emt 0:00:00]} Nf6 {[%emt 0:00:00]} 2. c4 {[%emt 0:00:00]} e6 {[%emt 0:00:00]} 3. Nc3 {[%emt 0:00:24]} Bb4 {[%emt 0:00:18]} 4. e3 {[%emt 0:00:09]} O-O {[%emt 0:00:16]} 5. Bd3 {[%emt 0:00:08]} d5 {[%emt 0:00:21]} 6. Nf3 {[%emt 0:00:05]} c5 {[%emt 0:00:18]} 7. cxd5 {[%emt 0:01:05]} exd5 {[%emt 0:00:14]} 8. dxc5 {[%emt 0:00:18]} Nbd7 {[%emt 0:01:59]} 9. O-O {[%emt 0:07:53]} Nxc5 {[%emt 0:00:15]} 10. Ne2 {[%emt 0:00:45]} Nxd3 {[%emt 0:01:33]} 11. Qxd3 {[%emt 0:01:15]} Bd6 {[%emt 0:00:05]} 12. b3 {[%emt 0:07:44]} Bg4 {[%emt 0:02:46]} 13. Bb2 {[%emt 0:01:46]} Be6 {[%emt 0:03:14]} 14. Nf4 {[%emt 0:15:58]} Bxf4 {[%emt 0:18:00]} 15. exf4 {[%emt 0:02:18]} Ne4 {[%emt 0:00:08]} 16. Nd4 {[%emt 0:02:49]} Qf6 {[%emt 0:03:35]} 17. f3 {[%emt 0:09:22]} Nc5 {[%emt 0:05:44]} 18. Qd2 {[%emt 0:01:20]} Qg6 {[%emt 0:01:34]} 19. Rad1 {[%emt 0:07:00]} Rfc8 {[%emt 0:01:08]} 20. Rfe1 {[%emt 0:02:51]} h6 {[%emt 0:13:01]} 21. Re5 {[%emt 0:04:03]} Nd7 {[%emt 0:09:56]} 22. f5 {[%emt 0:11:47]} Qf6 {[%emt 0:00:25]} 23. Ree1 {[%emt 0:04:00]} Bxf5 {[%emt 0:00:36]} 24. g4 {[%emt 0:01:47]} Bc2 {[%emt 0:09:06]} 25. Rc1 {[%emt 0:00:25]} Ne5 {[%emt 0:03:16]} 26. Rxc2 {[%emt 0:01:17]} Rxc2 {[%emt 0:00:26]} 27. Qxc2 {[%emt 0:00:07]} Nxf3+ {[%emt 0:00:17]} 28. Nxf3 {[%emt 0:00:06]} Qxf3 {[%emt 0:00:05]} 29. Qf5 {[%emt 0:01:08]} Qh3 {[%emt 0:00:54]} 30. Bd4 {[%emt 0:05:23]} b6 {[%emt 0:03:07]} 31. Re7 {[%emt 0:04:18]} Rf8 {[%emt 0:00:15]} 32. Rxa7 {[%emt 0:00:58]} Qh4 {[%emt 0:00:06]} 33. Bf2 {[%emt 0:00:23]} Qd8 {[%emt 0:00:06]} 34. Rd7 {[%emt 0:00:23]} Qa8 {[%emt 0:00:05]} 35. a4 {[%emt 0:00:38]} b5 {[%emt 0:02:09]} 36. axb5 {[%emt 0:01:35]} 1-0

[Event "4th Batumi Cup 2018"]
[Site "Batumi"]
[Date "2018.07.03"]
[Round "1"]
[White "Maghalashvili, Davit"]
[Black "Sanchez, Louis"]
[Result "1-0"]
[ECO "A14"]
[WhiteElo "2508"]
[BlackElo "2290"]
[Annotator "ChessBase"]
[PlyCount "91"]
[EventDate "2018.07.03"]
[EventType "swiss"]
[EventCountry "GEO"]
[SourceTitle "playchess.com"]
[Source "ChessBase"]
[SourceQuality "1"]
[TimeControl "40/5400+30:1800+30"]

1. Nf3 {[%emt 0:00:00]} d5 {[%emt 0:00:09]} 2. g3 {[%emt 0:00:00]} Nf6 {[%emt 0:01:09]} 3. Bg2 {[%emt 0:00:13]} e6 {[%emt 0:01:02]} 4. O-O {[%emt 0:00:52]} Be7 {[%emt 0:01:08]} 5. c4 {[%emt 0:05:56]} O-O {[%emt 0:01:20]} 6. b3 {[%emt 0:00:41]} c5 {[%emt 0:02:32]} 7. cxd5 {[%emt 0:01:35]} Nxd5 {[%emt 0:02:02]} 8. Bb2 {[%emt 0:00:25]} Nc6 {[%emt 0:02:00]} 9. d4 {[%emt 0:01:05]} cxd4 {[%emt 0:02:32]} 10. Nxd4 {[%emt 0:00:07]} Bd7 {[%emt 0:03:10]} 11. Na3 {[%emt 0:09:12]} Nxd4 {[%emt 0:14:16]} 12. Qxd4 {[%emt 0:01:13]} Bf6 {[%emt 0:00:52]} 13. Qd2 {[%emt 0:00:43]} Bc6 {[%emt 0:03:27]} 14. Nc4 {[%emt 0:07:53]} Bxb2 {[%emt 0:06:22]} 15. Qxb2 {[%emt 0:03:01]} Nb4 {[%emt 0:01:52]} 16. Rfd1 {[%emt 0:05:24]} Qe7 {[%emt 0:09:23]} 17. Ne5 {[%emt 0:13:23]} Rfd8 {[%emt 0:20:13]} 18. Nxc6 {[%emt 0:01:30]} Nxc6 {[%emt 0:00:17]} 19. Bxc6 {[%emt 0:01:01]} bxc6 {[%emt 0:00:05]} 20. Qc3 {[%emt 0:00:34]} Qb7 {[%emt 0:05:49]} 21. Rac1 {[%emt 0:04:15]} Qa6 {[%emt 0:02:55]} 22. Rd2 {[%emt 0:01:42]} Rxd2 {[%emt 0:07:31]} 23. Qxd2 {[%emt 0:00:14]} h6 {[%emt 0:00:39]} 24. Rc4 {[%emt 0:06:20]} Qb6 {[%emt 0:01:12]} 25. Qc3 {[%emt 0:06:43]} Rc8 {[%emt 0:01:30]} 26. Rc5 {[%emt 0:00:45]} Qa6 {[%emt 0:00:59]} 27. Qc2 {[%emt 0:01:03]} Qa3 {[%emt 0:02:16]} 28. Rc4 {[%emt 0:00:07]} Qa5 {[%emt 0:00:48]} 29. b4 {[%emt 0:01:49]} Qb6 {[%emt 0:02:48]} 30. Qa4 {[%emt 0:03:34]} a6 {[%emt 0:00:59]} 31. a3 {[%emt 0:01:15]} Rc7 {[%emt 0:01:15]} 32. Rc5 {[%emt 0:00:21]} Rc8 {[%emt 0:00:18]} 33. Qc2 {[%emt 0:00:45]} Rc7 {[%emt 0:00:42]} 34. h4 {[%emt 0:00:35]} Rc8 {[%emt 0:00:38]} 35. h5 {[%emt 0:01:21]} Qb7 {[%emt 0:00:11]} 36. Qd3 {[%emt 0:01:42]} Qb6 {[%emt 0:00:38]} 37. Qd7 {[%emt 0:01:39]} Qc7 {[%emt 0:01:10]} 38. Qd3 {[%emt 0:00:14]} Qb6 {[%emt 0:00:22]} 39. Qc3 {[%emt 0:03:20]} Qb7 {[%emt 0:01:03]} 40. Qc4 {[%emt 0:00:00]} Qb6 {[%emt 0:00:00]} 41. a4 {[%emt 0:07:09]} Rc7 {[%emt 0:09:40]} 42. Qc3 {[%emt 0:01:13]} Rb7 {[%emt 0:19:04]} 43. Rxc6 {[%emt 0:01:00]} Qxb4 {[%emt 0:00:13]} 44. Rc8+ {[%emt 0:02:24]} Kh7 {[%emt 0:00:08]} 45. Qd3+ {[%emt 0:00:10]} g6 {[%emt 0:03:28]} 46. Qd8 {[%emt 0:00:39]} 1-0

[Event "4th Batumi Cup 2018"]
[Site "Batumi"]
[Date "2018.07.03"]
[Round "1"]
[White "Sindarov, Javokhir"]
[Black "Akhvlediani, Irakli"]
[Result "1/2-1/2"]
[ECO "B70"]
[WhiteElo "2474"]
[BlackElo "2264"]
[Annotator "ChessBase"]
[PlyCount "132"]
[EventDate "2018.07.03"]
[EventType "swiss"]
[EventCountry "GEO"]
[SourceTitle "playchess.com"]
[Source "ChessBase"]
[SourceQuality "1"]
[TimeControl "40/5400+30:1800+30"]

1. e4 {[%emt 0:00:00]} c5 {[%emt 0:00:00]} 2. Nf3 {[%emt 0:00:00]} Nc6 {[%emt 0:00:00]} 3. d4 {[%emt 0:00:16]} cxd4 {[%emt 0:00:00]} 4. Nxd4 {[%emt 0:00:03]} g6 {[%emt 0:00:00]} 5. Nc3 {[%emt 0:05:29]} Bg7 {[%emt 0:00:34]} 6. Nb3 {[%emt 0:00:40]} Nf6 {[%emt 0:00:29]} 7. Be2 {[%emt 0:00:05]} O-O {[%emt 0:00:09]} 8. O-O {[%emt 0:00:10]} d6 {[%emt 0:19:25]} 9. Re1 {[%emt 0:00:20]} Be6 {[%emt 0:02:02]} 10. Bf1 {[%emt 0:05:17]} Na5 {[%emt 0:04:44]} 11. e5 {[%emt 0:20:47]} Ne8 {[%emt 0:02:36]} 12. Nxa5 {[%emt 0:00:29]} Qxa5 {[%emt 0:00:08]} 13. Bg5 {[%emt 0:00:10]} Qd8 {[%emt 0:09:02]} 14. Nd5 {[%emt 0:14:02]} Bxd5 {[%emt 0:02:49]} 15. Qxd5 {[%emt 0:00:35]} h6 {[%emt 0:00:28]} 16. Be3 {[%emt 0:02:40]} dxe5 {[%emt 0:06:15]} 17. Qxd8 {[%emt 0:05:13]} Rxd8 {[%emt 0:00:04]} 18. Bxa7 {[%emt 0:00:04]} Nd6 {[%emt 0:03:32]} 19. c3 {[%emt 0:04:34]} f5 {[%emt 0:03:35]} 20. Bb6 {[%emt 0:03:37]} Ra8 {[%emt 0:02:21]} 21. a4 {[%emt 0:01:05]} Rfc8 {[%emt 0:03:18]} 22. a5 {[%emt 0:00:33]} Kf7 {[%emt 0:00:37]} 23. Rad1 {[%emt 0:05:13]} Rc6 {[%emt 0:01:22]} 24. Bd3 {[%emt 0:04:50]} e6 {[%emt 0:06:02]} 25. Bc2 {[%emt 0:05:06]} Ke7 {[%emt 0:00:04]} 26. Bb3 {[%emt 0:01:55]} h5 {[%emt 0:13:37]} 27. Re2 {[%emt 0:02:23]} e4 {[%emt 0:00:51]} 28. f3 {[%emt 0:01:16]} Be5 {[%emt 0:02:01]} 29. g3 {[%emt 0:00:19]} g5 {[%emt 0:02:03]} 30. Kg2 {[%emt 0:03:32]} exf3+ {[%emt 0:02:36]} 31. Kxf3 {[%emt 0:00:15]} Ne4 {[%emt 0:00:03]} 32. Bc2 {[%emt 0:03:27]} Bc7 {[%emt 0:00:16]} 33. Bxe4 {[%emt 0:02:36]} fxe4+ {[%emt 0:00:05]} 34. Kxe4 {[%emt 0:00:04]} Bxb6 {[%emt 0:00:15]} 35. axb6 {[%emt 0:00:04]} Ra4+ {[%emt 0:03:39]} 36. Rd4 {[%emt 0:03:53]} Rxd4+ {[%emt 0:01:55]} 37. Kxd4 {[%emt 0:00:04]} Rxb6 {[%emt 0:00:03]} 38. Kc5 {[%emt 0:00:03]} Rc6+ {[%emt 0:00:11]} 39. Kb5 {[%emt 0:00:05]} Kf6 {[%emt 0:03:04]} 40. Rf2+ {[%emt 0:00:00]} Ke7 {[%emt 0:00:00]} 41. c4 {[%emt 0:03:16]} e5 {[%emt 0:09:20]} 42. c5 {[%emt 0:00:41]} Ke6 {[%emt 0:21:57]} 43. b4 {[%emt 0:00:11]} Ra6 {[%emt 0:02:09]} 44. Kc4 {[%emt 0:00:59]} Ra1 {[%emt 0:00:31]} 45. Rd2 {[%emt 0:01:09]} e4 {[%emt 0:02:47]} 46. Rd6+ {[%emt 0:00:29]} Kf5 {[%emt 0:02:32]} 47. Kd4 {[%emt 0:05:32]} Rb1 {[%emt 0:01:39]} 48. Rb6 {[%emt 0:00:05]} Rd1+ {[%emt 0:00:03]} 49. Ke3 {[%emt 0:00:05]} Rd3+ {[%emt 0:00:04]} 50. Ke2 {[%emt 0:00:09]} Rd7 {[%emt 0:00:02]} 51. Rh6 {[%emt 0:09:49]} Rd4 {[%emt 0:02:09]} 52. Rb6 {[%emt 0:00:13]} Rd7 {[%emt 0:00:03]} 53. h3 {[%emt 0:00:03]} h4 {[%emt 0:00:02]} 54. Rb5 {[%emt 0:00:08]} Kf6 {[%emt 0:01:23]} 55. g4 {[%emt 0:05:02]} Ke6 {[%emt 0:00:55]} 56. Rb6+ {[%emt 0:02:24]} Ke5 {[%emt 0:00:17]} 57. b5 {[%emt 0:00:29]} Rd5 {[%emt 0:01:03]} 58. Rxb7 {[%emt 0:05:29]} Rxc5 {[%emt 0:00:02]} 59. Rf7 {[%emt 0:00:09]} Rc2+ {[%emt 0:01:11]} 60. Kf1 {[%emt 0:00:17]} Rb2 {[%emt 0:00:15]} 61. Rf5+ {[%emt 0:02:46]} Kd4 {[%emt 0:00:02]} 62. Rxg5 {[%emt 0:00:05]} e3 {[%emt 0:00:33]} 63. Rf5 {[%emt 0:01:07]} Kd3 {[%emt 0:00:10]} 64. Rd5+ {[%emt 0:00:29]} Ke4 {[%emt 0:00:09]} 65. Rf5 {[%emt 0:00:05]} Kd3 {[%emt 0:01:09]} 66. Rd5+ {[%emt 0:00:06]} Ke4 {[%emt 0:00:05]} 1/2-1/2

[Event "4th Batumi Cup 2018"]
[Site "Batumi"]
[Date "2018.07.03"]
[Round "1"]
[White "Nigmatov, Ortik"]
[Black "Primbetov, Kazbek"]
[Result "0-1"]
[ECO "B75"]
[WhiteElo "2461"]
[BlackElo "2257"]
[Annotator "ChessBase"]
[PlyCount "82"]
[EventDate "2018.07.03"]
[EventType "swiss"]
[EventCountry "GEO"]
[SourceTitle "playchess.com"]
[Source "ChessBase"]
[SourceQuality "1"]
[TimeControl "40/5400+30:1800+30"]

1. e4 {[%emt 0:00:00]} c5 {[%emt 0:00:00]} 2. Nf3 {[%emt 0:00:00]} d6 {[%emt 0:00:00]} 3. d4 {[%emt 0:00:00]} cxd4 {[%emt 0:00:00]} 4. Nxd4 {[%emt 0:00:02]} Nf6 {[%emt 0:00:00]} 5. Nc3 {[%emt 0:00:04]} g6 {[%emt 0:00:00]} 6. Be3 {[%emt 0:01:08]} Bg7 {[%emt 0:00:00]} 7. f3 {[%emt 0:00:04]} Nc6 {[%emt 0:00:18]} 8. Qd2 {[%emt 0:00:07]} h5 {[%emt 0:01:27]} 9. O-O-O {[%emt 0:03:03]} Bd7 {[%emt 0:00:22]} 10. Kb1 {[%emt 0:09:46]} a6 {[%emt 0:09:15]} 11. h4 {[%emt 0:07:14]} Ne5 {[%emt 0:04:49]} 12. Bg5 {[%emt 0:00:53]} Rc8 {[%emt 0:00:57]} 13. f4 {[%emt 0:19:46]} Neg4 {[%emt 0:05:34]} 14. Bxf6 {[%emt 0:22:20]} Bxf6 {[%emt 0:04:56]} 15. Nd5 {[%emt 0:00:30]} Bg7 {[%emt 0:00:26]} 16. f5 {[%emt 0:08:30]} e6 {[%emt 0:03:07]} 17. Nc3 {[%emt 0:04:02]} O-O {[%emt 0:08:44]} 18. Rh3 {[%emt 0:01:46]} Bh6 {[%emt 0:13:37]} 19. Qe1 {[%emt 0:02:48]} exf5 {[%emt 0:00:42]} 20. Bd3 {[%emt 0:07:38]} Re8 {[%emt 0:03:59]} 21. Qg3 {[%emt 0:03:43]} Rxc3 {[%emt 0:09:46]} 22. bxc3 {[%emt 0:00:05]} Qb6+ {[%emt 0:00:09]} 23. Ka1 {[%emt 0:03:44]} fxe4 {[%emt 0:02:12]} 24. Bc4 {[%emt 0:00:03]} Qc5 {[%emt 0:00:27]} 25. Bb3 {[%emt 0:00:39]} e3 {[%emt 0:03:04]} 26. Ne2 {[%emt 0:00:17]} Bb5 {[%emt 0:00:18]} 27. Rd5 {[%emt 0:01:36]} Qa3 {[%emt 0:02:04]} 28. Rxb5 {[%emt 0:03:26]} axb5 {[%emt 0:00:01]} 29. Qf3 {[%emt 0:00:15]} Re7 {[%emt 0:00:44]} 30. Qd5 {[%emt 0:00:32]} b4 {[%emt 0:00:19]} 31. Qxd6 {[%emt 0:00:17]} Bf8 {[%emt 0:05:54]} 32. cxb4 {[%emt 0:01:00]} Re6 {[%emt 0:02:02]} 33. Qc7 {[%emt 0:00:01]} Qxb4 {[%emt 0:09:15]} 34. Bxe6 {[%emt 0:00:10]} Qe1+ {[%emt 0:01:50]} 35. Kb2 {[%emt 0:00:00]} fxe6 {[%emt 0:00:06]} 36. Qc4 {[%emt 0:01:35]} Bg7+ {[%emt 0:00:05]} 37. Ka3 {[%emt 0:00:46]} Qa5+ {[%emt 0:00:41]} 38. Kb3 {[%emt 0:00:13]} Ne5 {[%emt 0:03:23]} 39. Qxe6+ {[%emt 0:00:27]} Kh7 {[%emt 0:00:01]} 40. a4 {[%emt 0:00:00]} b5 {[%emt 0:00:00]} 41. Rxe3 {[%emt 0:07:37]} Nd3 {[%emt 0:07:00]} 0-1

[Event "4th Batumi Cup 2018"]
[Site "Batumi"]
[Date "2018.07.03"]
[Round "1"]
[White "Sibashvili, Giorgi"]
[Black "Mammadova, Narmin"]
[Result "1-0"]
[ECO "D90"]
[WhiteElo "2408"]
[BlackElo "2209"]
[Annotator "NA"]
[PlyCount "65"]
[EventDate "2018.07.03"]
[EventType "swiss"]
[EventCountry "GEO"]
[SourceTitle "playchess.com"]
[Source "ChessBase"]
[SourceQuality "1"]
[TimeControl "40/5400+30:1800+30"]

1. d4 {[%emt 0:00:00]} d5 {[%emt 0:00:00]} 2. c4 {[%emt 0:00:02]} c6 {[%emt 0:00:16]} 3. Nc3 {[%emt 0:02:42]} Nf6 {[%emt 0:01:41]} 4. Nf3 {[%emt 0:00:32]} g6 {[%emt 0:01:37]} 5. cxd5 {[%emt 0:02:41]} cxd5 {[%emt 0:00:29]} 6. Bf4 {[%emt 0:00:15]} Nc6 {[%emt 0:02:56]} 7. e3 {[%emt 0:00:24]} a6 {[%emt 0:00:09]} 8. Bd3 {[%emt 0:01:36]} Bg7 {[%emt 0:02:06]} 9. O-O {[%emt 0:01:39]} O-O {[%emt 0:01:28]} 10. h3 {[%emt 0:04:50]} b5 {[%emt 0:04:22]} 11. Rc1 {[%emt 0:02:38]} Bb7 {[%emt 0:02:08]} 12. Ne5 {[%emt 0:08:29]} Rc8 {[%emt 0:12:02]} 13. Nxc6 {[%emt 0:06:56]} Bxc6 {[%emt 0:07:58]} 14. a4 {[%emt 0:06:03]} b4 {[%emt 0:15:03]} 15. Na2 {[%emt 0:12:12]} Qb6 {[%emt 0:03:55]} 16. Qb3 {[%emt 0:14:42]} a5 {[%emt 0:02:15]} 17. Nc3 {[%emt 0:00:35]} Qb7 {[%emt 0:07:48]} 18. Nb5 {[%emt 0:01:38]} Qd7 {[%emt 0:09:43]} 19. Rc2 {[%emt 0:06:30]} Ne4 {[%emt 0:07:55]} 20. Rfc1 {[%emt 0:03:55]} Nd6 {[%emt 0:04:52]} 21. Nxd6 {[%emt 0:06:02]} Bxa4 {[%emt 0:09:57]} 22. Qxd5 {[%emt 0:06:13]} Bxc2 {[%emt 0:01:02]} 23. Nxc8 {[%emt 0:01:13]} Qxd5 {[%emt 0:00:08]} 24. Nxe7+ {[%emt 0:00:05]} Kh8 {[%emt 0:00:05]} 25. Nxd5 {[%emt 0:00:05]} Bxd3 {[%emt 0:00:02]} 26. Ra1 {[%emt 0:00:16]} Ra8 {[%emt 0:02:27]} 27. Nxb4 {[%emt 0:01:35]} Be4 {[%emt 0:00:01]} 28. Na2 {[%emt 0:00:11]} Ra7 {[%emt 0:01:02]} 29. Nc3 {[%emt 0:01:05]} Bc2 {[%emt 0:00:20]} 30. b4 {[%emt 0:03:54]} a4 {[%emt 0:00:37]} 31. b5 {[%emt 0:00:10]} h6 {[%emt 0:00:32]} 32. b6 {[%emt 0:00:53]} Rb7 {[%emt 0:00:21]} 33. Bc7 {[%emt 0:00:15]} 1-0